bitfinex/quotes_ETHUSD_20240730
["timestamp","ask_amount","ask_price","bid_price","bid_amount"]
[1722312325938,2.41014,3319.3,3319.2,0.1448131]
[1722312326098,3.55711463,3319.3,3319.2,0.1448131]
[1722312326499,0.11495363,3319.3,3319.2,0.1448131]
[1722312327333,0.11493103,3319.3,3319.2,0.1448131]
[1722312327710,2.41002,3319.5,3319.2,0.1448131]
[1722312327899,0.11493103,3319.3,3319.2,0.1448131]
[1722312328932,2.41001,3319.5,3319.2,0.1448131]
[1722312329134,0.11493103,3319.3,3319.2,0.1448131]
[1722312329307,2.2553,3319.9,3319.2,0.1448131]
[1722312329508,0.11497622,3319.8,3319.2,2.5549731]
[1722312329713,2.52477622,3319.8,3319.2,0.1448131]
[1722312329912,9.82953,3320.2,3319.2,0.1448131]
[1722312329913,0.80247762,3319.7,3319.2,0.1448131]
[1722312330134,2.41,3319.5,3319.2,0.1448131]
[1722312330706,0.11497622,3319.4,3319.2,0.1448131]
[1722312332340,0.11509822,3319.3,3319.2,0.1448131]
[1722312332757,2.40993,3319.6,3319.2,0.1448131]
[1722312332931,0.11514792,3319.3,3319.2,0.1448131]
[1722312333139,2.40993,3319.6,3319.2,0.1448131]
[1722312333344,0.11514792,3319.3,3319.2,0.1448131]
[1722312333545,7.70498,3319.3,3319.2,0.1448131]
[1722312333745,5.48542792,3319.3,3319.2,0.1448131]
[1722312334046,4.93542792,3319.3,3319.2,0.1448131]
[1722312334249,0.11514792,3319.3,3319.2,0.1448131]
[1722312334610,2.41007,3319.4,3319.2,0.1448131]
[1722312334954,0.11483615,3319.3,3319.2,0.1448131]
[1722312335536,7.51270677,3319.3,3319.2,0.1448131]
[1722312335748,7.26021615,3319.3,3319.2,0.1448131]
[1722312336165,7.81021615,3319.3,3319.2,0.1448131]
[1722312338721,10.22035615,3319.3,3319.2,0.1448131]
[1722312338920,10.22035615,3319.3,3319.2,35.1448131]
[1722312339157,11.24239177,3319.3,3319.2,35.1448131]
[1722312342374,16.31953177,3319.3,3319.2,35.1448131]
[1722312342661,16.31953177,3319.3,3319.2,0.1448131]
[1722312342869,13.90939177,3319.3,3319.2,0.1448131]
[1722312344170,5.95715177,3319.3,3319.2,0.1448131]
[1722312346101,6.50715177,3319.3,3319.2,0.1448131]
[1722312347606,6.50715177,3319.3,3319.2,35.1448131]
[1722312350477,4.09701177,3319.3,3319.2,35.1448131]
[1722312350678,2.52497615,3319.3,3319.2,35.1448131]
[1722312353190,0.11483615,3319.3,3319.2,35.1448131]
[1722312353388,2.41007,3319.4,3319.2,35.1448131]
[1722312353592,2.40978,3319.9,3319.2,35.1448131]
[1722312353823,0.11417617,3319.3,3319.2,35.1448131]
[1722312354130,2.40985,3319.7,3319.2,35.1448131]
[1722312354424,0.11417617,3319.6,3319.2,35.1448131]
[1722312354788,2.52411617,3319.6,3319.2,35.1448131]
[1722312356610,2.52411617,3319.6,3319.2,0.1448131]
[1722312357110,2.52411617,3319.6,3319.3,35.0]
[1722312357325,0.11417617,3319.6,3319.3,35.0]
[1722312360114,2.52410617,3319.6,3319.3,35.0]
[1722312361473,2.52274348,3319.6,3319.3,36.48680167]
[1722312368066,0.11281348,3319.6,3319.3,36.48680167]
[1722312368505,3.98949695,3319.9,3319.4,0.06024858]
[1722312368647,0.11431154,3319.5,3319.4,0.06024858]
[1722312368849,7.42,3320.2,3319.6,2.40987]
[1722312369088,7.42,3320.2,3320.0,35.0]
[1722312369286,3.9886321,3320.5,3320.0,35.0]
[1722312369580,2.40935,3320.4,3320.0,35.0]
[1722312369838,1.5793421,3320.5,3320.0,35.0]
[1722312369952,3.9886321,3320.5,3320.0,35.0]
[1722312370148,2.40934,3320.4,3320.0,35.0]
[1722312370353,2.40947,3320.3,3320.0,35.0]
[1722312370945,6.3979621,3320.5,3320.0,35.0]
[1722312371190,2.40929,3320.5,3320.0,38.04901288]
[1722312371360,2.40942,3320.3,3320.0,38.04901288]
[1722312371779,2.40929,3320.5,3320.0,38.04901288]
[1722312371977,2.40934,3320.4,3320.0,38.04901288]
[1722312372483,2.40934,3320.4,3320.1,2.30785947]
[1722312372683,2.40924,3320.6,3320.1,2.30785947]
[1722312373614,2.40928,3320.5,3320.1,2.30785947]
[1722312375788,2.40928,3320.5,3320.0,2.4258]
[1722312376085,2.40928,3320.5,3320.2,35.0]
[1722312377681,9.82916,3320.7,3320.2,35.0]
[1722312378195,7.42,3320.7,3320.2,35.0]
[1722312378400,2.40911,3320.8,3320.2,35.0]
[1722312378586,0.11477234,3320.6,3320.3,3.10924314]
[1722312378893,2.409,3320.9,3320.3,3.10924314]
[1722312379091,0.11477234,3320.5,3320.3,3.10924314]
[1722312379298,2.409,3320.9,3320.4,3.04901288]
[1722312379597,2.409,3320.9,3320.4,3.10923988]
[1722312379967,2.409,3320.9,3320.4,3.04901288]
[1722312381500,2.409,3320.9,3320.2,2.40949]
[1722312381698,2.409,3320.9,3320.5,35.0]
[1722312383184,2.40907,3320.8,3320.5,35.0]
[1722312383594,2.38798789,3320.8,3320.5,35.0]
[1722312388017,7.42,3321.1,3320.6,4.85859]
[1722312388222,7.42,3321.1,3320.6,7.90760288]
[1722312388920,7.42,3321.1,3320.7,2.40912]
[1722312389118,7.42,3321.1,3320.8,2.46926938]
[1722312389491,7.42,3321.1,3320.8,2.40905]
[1722312389492,0.11637614,3321.0,3320.8,2.40905]
[1722312389685,0.11637614,3321.0,3320.9,35.240905]
[1722312389885,7.42,3321.1,3320.9,35.240905]
[1722312390281,2.40861,3321.5,3320.9,35.240905]
[1722312390482,0.1164935,3321.0,3320.9,35.240905]
[1722312390828,9.82835,3321.8,3321.2,4.81001]
[1722312391027,2.40827,3321.9,3321.2,2.4013]
[1722312391028,2.40841,3321.7,3321.2,2.4013]
[1722312391199,7.42,3322.1,3321.3,0.481014]
[1722312391200,2.40833,3321.8,3321.3,0.481014]
[1722312391528,2.40833,3321.8,3321.4,35.0]
[1722312392720,2.4084,3321.7,3321.4,35.0]
[1722312392895,2.4083,3321.9,3321.4,35.0]
[1722312393095,2.40819,3322.0,3321.4,35.0]
[1722312393422,0.11673272,3321.9,3321.4,35.0]
[1722312393720,2.40831,3321.9,3321.4,35.0]
[1722312393887,0.11687262,3321.8,3321.4,35.0]
[1722312394219,2.52520262,3321.8,3321.4,35.0]
[1722312395682,0.11687262,3321.8,3321.4,35.0]
[1722312395877,2.4083,3321.9,3321.4,38.04901288]
[1722312396077,0.11687262,3321.7,3321.4,38.04901288]
[1722312396311,2.40834,3321.8,3321.4,38.04901288]
[1722312396515,0.11687262,3321.6,3321.4,38.04901288]
[1722312396833,0.11687262,3321.5,3321.4,38.04901288]
[1722312397012,2.4084,3321.7,3321.4,38.04901288]
[1722312397186,0.11687262,3321.5,3321.4,35.0]
[1722312397383,2.4084,3321.7,3321.4,35.0]
[1722312397683,0.11692225,3321.6,3321.4,35.0]
[1722312399215,0.11692225,3321.5,3321.4,35.0]
[1722312399929,2.4083,3321.9,3321.4,35.0]
[1722312400084,0.11692225,3321.5,3321.4,35.0]
[1722312400285,2.4083,3321.9,3321.4,35.0]
[1722312400485,0.11692225,3321.5,3321.4,35.0]
[1722312400685,2.4083,3321.9,3321.4,38.04901288]
[1722312400686,2.40835,3321.8,3321.4,38.04901288]
[1722312400913,0.11692225,3321.5,3321.4,35.0]
[1722312401095,2.40843,3321.7,3321.4,35.0]
[1722312401296,0.11692225,3321.5,3321.4,35.0]
[1722312401518,2.40843,3321.7,3321.4,35.0]
[1722312402315,0.11692225,3321.6,3321.4,35.0]
[1722312405722,0.11692225,3321.6,3321.4,36.111]
[1722312405939,0.11692225,3321.6,3321.5,0.06020718]
[1722312406090,2.4083,3321.9,3321.5,0.06020718]
[1722312406290,0.11687262,3321.6,3321.5,0.06020718]
[1722312406504,2.4083,3321.9,3321.5,0.06020718]
[1722312406824,0.11687262,3321.6,3321.5,0.06020718]
[1722312407034,2.40833,3321.8,3321.5,0.06020718]
[1722312407209,2.52520262,3321.8,3321.5,0.06020718]
[1722312407592,0.11687262,3321.7,3321.5,0.06020718]
[1722312407897,0.11687262,3321.7,3321.4,36.111]
[1722312408209,0.11687262,3321.6,3321.4,36.111]
[1722312408415,2.40833,3321.8,3321.4,36.111]
[1722312408622,0.11687262,3321.5,3321.4,36.111]
[1722312408827,2.40833,3321.8,3321.4,36.111]
[1722312409126,0.11687262,3321.5,3321.4,36.111]
[1722312409330,2.40841,3321.7,3321.4,36.111]
[1722312409507,0.11687262,3321.5,3321.4,36.111]
[1722312409709,2.40841,3321.7,3321.4,36.111]
[1722312409906,0.11687262,3321.5,3321.4,36.111]
[1722312410397,2.40841,3321.7,3321.4,36.111]
[1722312410708,0.11687262,3321.6,3321.4,36.111]
[1722312412431,0.11687262,3321.6,3321.4,35.0]
[1722312415538,0.11687262,3321.6,3321.5,0.06020744]
[1722312415737,2.40827,3321.9,3321.5,0.06020744]
[1722312415936,9.82814,3322.1,3321.6,1.111]
[1722312416135,9.82814,3322.1,3321.7,0.06020336]
[1722312417250,2.40814,3322.1,3321.7,0.06020336]
[1722312417455,2.40814,3322.1,3321.6,1.111]
[1722312417641,2.40814,3322.1,3321.7,0.351954]
[1722312420024,2.40814,3322.1,3321.6,1.111]
[1722312422283,3.98382231,3322.3,3321.7,0.060202]
[1722312422774,2.40797,3322.3,3321.7,0.060202]
[1722312422931,2.40805,3322.2,3321.7,0.060202]
[1722312423126,2.40797,3322.3,3321.7,0.060202]
[1722312423127,2.40812,3322.1,3321.7,0.060202]
[1722312423530,0.11723086,3322.0,3321.8,35.0]
[1722312424529,2.40812,3322.1,3321.8,35.0]
[1722312424738,0.11723086,3321.9,3321.8,35.0]
[1722312425071,2.40812,3322.1,3321.8,35.0]
[1722312425277,0.11723086,3321.9,3321.8,35.0]
[1722312425581,2.40812,3322.1,3321.8,35.0]
[1722312425928,0.11723086,3322.0,3321.8,35.0]
[1722312427485,0.11723086,3321.9,3321.8,35.0]
[1722312427693,2.40797,3322.3,3321.8,35.0]
[1722312427845,0.11723086,3321.9,3321.8,35.0]
[1722312428032,2.40816,3322.1,3321.8,35.0]
[1722312428798,0.11723086,3322.0,3321.8,35.0]
[1722312429334,2.52542086,3322.0,3321.8,35.0]
[1722312432926,0.11723086,3322.0,3321.8,35.0]
[1722312433280,0.11723086,3321.9,3321.8,35.0]
[1722312433576,1.58008307,3322.1,3321.8,35.0]
[1722312434035,0.11723086,3322.0,3321.8,35.0]
[1722312434540,0.11723086,3322.0,3321.8,35.94225172]
[1722312434751,0.11723086,3322.0,3321.9,0.06020191]
[1722312434958,0.11723086,3322.0,3321.9,2.46846191]
[1722312435262,1.58008307,3322.5,3322.0,2.40816]
[1722312435569,7.42,3322.6,3322.4,1.111]
[1722312435570,9.00008307,3322.6,3322.4,1.111]
[1722312435731,7.42,3322.6,3322.4,1.111]
[1722312435936,11.40783307,3322.6,3322.5,35.0]
[1722312436169,9.82775,3322.6,3322.5,35.0]
[1722312436369,9.00004676,3322.6,3322.5,35.0]
[1722312436683,7.42,3322.6,3322.5,35.0]
[1722312436832,9.82775,3322.6,3322.5,35.0]
[1722312438057,2.40775,3322.6,3322.5,35.0]
[1722312438578,2.52528763,3322.6,3322.5,35.0]
[1722312439285,4.93303763,3322.6,3322.5,35.0]
[1722312441503,2.52528763,3322.6,3322.5,35.0]
[1722312443709,4.93303763,3322.6,3322.5,35.0]
[1722312454823,2.40833,3321.8,3321.4,2.4934]
[1722312455024,1.57939612,3322.0,3321.4,2.4934]
[1722312455221,2.40839,3321.8,3321.4,2.4934]
[1722312455425,2.40839,3321.8,3321.5,35.0]
[1722312455625,3.98803796,3321.8,3321.5,35.0]
[1722312455829,6.39658796,3321.6,3321.5,35.0]
[1722312456025,10.36803248,3321.6,3321.5,35.0]
[1722312456319,11.03553852,3321.6,3321.5,35.0]
[1722312456939,11.03553852,3321.6,3320.6,1.111]
[1722312456940,2.40888,3321.1,3320.6,1.111]
[1722312457153,0.11737524,3321.0,3320.7,0.06022157]
[1722312457370,2.4087,3321.3,3320.8,36.111]
[1722312457527,2.4087,3321.3,3320.9,3.04901288]
[1722312457725,1.57945463,3321.4,3321.0,1.111]
[1722312457954,2.40862,3321.4,3321.0,1.111]
[1722312458376,2.40862,3321.4,3321.1,35.0]
[1722312459382,7.42,3321.5,3321.1,35.0]
[1722312459568,9.82857,3321.5,3321.1,37.10490945]
[1722312459872,2.40863,3321.4,3321.1,37.10490945]
[1722312460172,2.4087,3321.3,3321.1,37.10490945]
[1722312460582,2.40876,3321.2,3321.1,35.0]
[1722312462544,2.40856,3321.5,3321.1,35.0]
[1722312462736,3.98698973,3321.7,3321.4,1.111]
[1722312462934,2.40833,3321.8,3321.4,1.111]
[1722312463187,8.99857973,3321.9,3321.6,1.111]
[1722312463188,7.42,3321.9,3321.6,1.111]
[1722312463474,7.42,3321.9,3321.7,35.0]
[1722312464035,2.40833,3321.8,3321.7,35.0]
[1722312468459,2.52556987,3321.8,3321.7,35.0]
[1722312472088,7.36069987,3321.8,3321.7,35.0]
[1722312472288,13.46261204,3321.8,3321.7,35.0]
[1722312472585,11.8849646,3321.8,3321.7,35.0]
[1722312473890,12.4349646,3321.8,3321.7,35.0]
[1722312474077,14.01247967,3321.8,3321.7,35.0]
[1722312474273,14.01248826,3321.8,3321.7,35.0]
[1722312474859,12.4349646,3321.8,3321.7,35.0]
[1722312475063,8.9156346,3321.8,3321.7,35.0]
[1722312475276,7.91069987,3321.8,3321.7,35.0]
[1722312476701,6.51142353,3321.8,3321.7,35.0]
[1722312476993,4.93389987,3321.8,3321.7,35.0]
[1722312477406,2.52556987,3321.8,3321.7,35.0]
[1722312480495,2.40851,3321.6,3321.4,2.4291]
[1722312480695,0.11690146,3321.5,3321.4,2.4291]
[1722312480895,0.11690146,3321.5,3321.4,37.4291]
[1722312481435,0.11690146,3321.5,3321.4,40.47811288]
[1722312481650,2.40833,3321.8,3321.4,40.47811288]
[1722312481934,0.11690146,3321.7,3321.4,40.47811288]
[1722312482140,2.40833,3321.8,3321.4,40.47811288]
[1722312482511,0.11690146,3321.7,3321.4,40.47811288]
[1722312482712,2.40833,3321.8,3321.4,40.47811288]
[1722312482959,0.11690146,3321.7,3321.4,37.4291]
[1722312483111,2.4083,3321.9,3321.5,0.0602081]
[1722312483437,0.11697366,3321.8,3321.5,1.1712081]
[1722312484602,2.4082,3322.0,3321.5,1.1712081]
[1722312484811,0.11705039,3321.7,3321.5,1.1712081]
[1722312485019,2.4082,3322.0,3321.5,4.22022098]
[1722312485334,0.11705039,3321.9,3321.5,4.22022098]
[1722312485531,0.11705039,3321.9,3321.7,1.111]
[1722312485834,2.40806,3322.2,3321.7,1.17120287]
[1722312486031,0.1172128,3321.8,3321.7,1.17120287]
[1722312486255,2.40806,3322.2,3321.8,35.0]
[1722312487755,2.40811,3322.1,3321.8,35.0]
[1722312488056,2.40798,3322.3,3321.8,35.0]
[1722312488544,8.99747187,3322.4,3321.9,3.47420253]
[1722312488545,9.8279,3322.4,3321.9,3.47420253]
[1722312488747,2.4079,3322.4,3322.0,3.04901288]
[1722312489042,2.4079,3322.4,3321.9,3.414]
[1722312489240,2.4079,3322.4,3322.1,35.0]
[1722312490841,2.40798,3322.3,3322.1,35.0]
[1722312491509,2.40804,3322.2,3322.1,35.0]
[1722312491713,1.57741603,3322.4,3322.1,35.0]
[1722312492056,1.57741603,3322.6,3322.1,39.16001288]
[1722312492214,2.4078,3322.6,3322.1,39.16001288]
[1722312492544,9.82765,3322.8,3322.3,1.111]
[1722312492842,2.40769,3322.7,3322.3,1.111]
[1722312493396,2.40775,3322.6,3322.3,1.111]
[1722312493593,7.42,3322.8,3322.5,1.111]
[1722312494426,2.40748,3323.0,3322.5,1.111]
[1722312494628,2.40748,3323.0,3322.7,1.111]
[1722312494998,2.40748,3323.0,3322.5,1.111]
[1722312495421,2.40748,3323.0,3322.5,1.71210979]
[1722312496903,8.99625498,3323.3,3322.9,1.111]
[1722312497198,1.57625498,3323.6,3323.1,1.111]
[1722312497401,3.98314498,3323.8,3323.1,1.111]
[1722312497599,2.40689,3323.8,3323.2,35.0]
[1722312498154,2.40712,3323.5,3323.2,35.0]
[1722312498331,2.40703,3323.6,3323.2,35.0]
[1722312498504,2.40724,3323.3,3323.2,35.0]
[1722312498903,2.52530077,3323.3,3323.2,35.0]
[1722312501137,4.93254077,3323.3,3323.2,35.0]
[1722312501611,11.42448077,3323.3,3323.2,35.0]
[1722312502013,12.9989724,3323.3,3323.2,35.0]
[1722312502248,12.72437801,3323.3,3323.2,35.0]
[1722312503019,2.40799,3322.3,3322.0,1.111]
[1722312503215,2.40799,3322.3,3321.9,2.3391]
[1722312503513,0.11817352,3322.2,3321.9,2.3391]
[1722312503719,2.40799,3322.3,3321.9,2.3391]
[1722312503923,2.40799,3322.3,3322.2,35.0]
[1722312506010,2.40783,3322.5,3322.2,35.0]
[1722312506205,2.40769,3322.7,3322.2,35.0]
[1722312506603,7.42,3322.8,3322.3,0.06019432]
[1722312506944,7.42,3322.8,3322.0,2.4767]
[1722312506945,7.42,3322.8,3322.2,2.40803]
[1722312507118,7.42,3322.8,3322.7,35.0]
[1722312507319,2.40754,3322.9,3322.7,35.0]
[1722312507643,2.40754,3322.9,3322.3,0.240803]
[1722312508146,2.40754,3322.9,3322.8,35.0]
[1722312511343,2.4074,3323.1,3322.8,35.0]
[1722312511511,9.723,3323.4,3322.8,35.0]
[1722312511714,0.9723,3323.3,3322.8,35.0]
[1722312512446,7.24386,3322.9,3322.8,35.0]
[1722312512943,2.40778,3322.6,3321.3,2.40868]
[1722312513104,2.40826,3321.9,3321.1,4.66407]
[1722312513310,2.40826,3321.9,3321.8,35.0]
[1722312513509,2.52631626,3321.9,3321.8,35.0]
[1722312514151,0.11805626,3321.9,3321.8,35.0]
[1722312514336,2.40815,3322.1,3321.8,35.0]
[1722312514536,0.11779469,3322.0,3321.8,35.0]
[1722312514722,0.11779469,3322.0,3321.8,38.04901288]
[1722312514928,2.40812,3322.1,3321.8,38.04901288]
[1722312515253,2.40826,3321.9,3321.8,35.0]
[1722312515629,2.52595093,3321.9,3321.8,35.0]
[1722312516245,4.93421093,3321.9,3321.8,35.0]
[1722312516562,5.55075609,3321.9,3321.8,35.0]
[1722312516715,5.66840642,3321.9,3321.8,35.0]
[1722312518443,8.07666642,3321.9,3321.8,35.0]
[1722312519549,2.40873,3321.3,3320.7,2.4566]
[1722312519724,2.40873,3321.3,3320.7,2.943179]
[1722312519922,0.11765033,3321.2,3320.7,2.943179]
[1722312520266,0.11765033,3321.2,3321.1,35.0]
[1722312520436,2.40873,3321.3,3321.1,35.0]
[1722312520738,2.40873,3321.3,3320.7,2.943179]
[1722312521061,0.11765033,3321.2,3320.8,0.5352369]
[1722312521357,2.40873,3321.3,3320.8,0.5352369]
[1722312521561,2.40873,3321.3,3321.2,35.0]
[1722312523867,2.40855,3321.5,3321.2,35.0]
[1722312524064,2.40855,3321.5,3321.2,38.04901288]
[1722312524484,2.40861,3321.5,3321.2,38.04901288]
[1722312526102,2.40863,3321.4,3321.2,38.04901288]
[1722312526250,2.40863,3321.4,3321.2,35.0]
[1722312526778,0.11684731,3321.3,3321.2,35.0]
[1722312526946,2.40863,3321.4,3321.2,35.0]
[1722312527150,0.11683827,3321.3,3321.2,35.0]
[1722312527350,2.40863,3321.4,3321.2,38.04901288]
[1722312527573,2.40847,3321.6,3321.2,38.04901288]
[1722312527786,0.11683827,3321.5,3321.2,38.04901288]
[1722312527943,2.40851,3321.6,3321.2,35.0]
[1722312528149,0.11685181,3321.5,3321.2,35.0]
[1722312528571,2.40869,3321.3,3321.2,35.0]
[1722312531254,2.52549668,3321.3,3321.2,35.0]
[1722312532314,2.40869,3321.3,3321.2,35.0]
[1722312533218,2.40841,3321.7,3321.2,35.96677014]
[1722312533425,2.52526447,3321.6,3321.2,35.0]
[1722312533575,2.40858,3321.5,3321.2,35.0]
[1722312534012,0.11673447,3321.4,3321.2,35.0]
[1722312534213,2.40858,3321.5,3321.2,38.04901288]
[1722312534414,0.11673447,3321.4,3321.2,38.04901288]
[1722312534588,2.40858,3321.5,3321.2,38.04901288]
[1722312534788,0.11673447,3321.4,3321.2,38.04901288]
[1722312535110,2.40858,3321.5,3321.2,38.04901288]
[1722312535316,2.40858,3321.5,3321.2,39.16001288]
[1722312535520,0.11673447,3321.4,3321.2,39.16001288]
[1722312535887,2.40858,3321.5,3321.2,39.16001288]
[1722312536212,0.11678414,3321.4,3321.2,39.16001288]
[1722312536409,2.40858,3321.5,3321.2,39.16001288]
[1722312536572,0.11678414,3321.4,3321.3,3.04901288]
[1722312536773,2.40833,3321.8,3321.3,4.22022311]
[1722312536970,2.40833,3321.8,3321.3,1.17121023]
[1722312536971,0.11678414,3321.7,3321.3,1.17121023]
[1722312537219,2.40833,3321.8,3321.4,35.0]
[1722312537518,0.1167796,3321.7,3321.4,35.0]
[1722312537881,2.40833,3321.8,3321.4,35.0]
[1722312538078,0.1167796,3321.6,3321.4,36.68469415]
[1722312538319,2.40833,3321.8,3321.4,36.68469415]
[1722312538690,0.1167796,3321.7,3321.4,36.68469415]
[1722312539071,2.40833,3321.8,3321.4,36.68469415]
[1722312539581,0.1167796,3321.7,3321.4,36.68469415]
[1722312539812,2.40833,3321.8,3321.4,36.68469415]
[1722312540119,0.1167796,3321.7,3321.4,36.68469415]
[1722312540533,2.40833,3321.8,3321.4,36.68469415]
[1722312541025,0.1167796,3321.7,3321.4,36.68469415]
[1722312541316,2.40841,3321.7,3321.4,36.68469415]
[1722312541489,0.1167796,3321.6,3321.4,36.68469415]
[1722312541825,2.40841,3321.7,3321.4,36.68469415]
[1722312541976,0.1167796,3321.6,3321.4,36.68469415]
[1722312542172,2.40841,3321.7,3321.4,36.68469415]
[1722312542377,0.1167796,3321.6,3321.4,36.68469415]
[1722312542628,2.40841,3321.7,3321.4,36.68469415]
[1722312542778,0.1167796,3321.6,3321.4,36.68469415]
[1722312543151,2.40841,3321.7,3321.4,36.68469415]
[1722312543616,0.1167796,3321.6,3321.4,36.68469415]
[1722312543788,2.40841,3321.7,3321.4,36.68469415]
[1722312543996,0.1167796,3321.6,3321.4,36.68469415]
[1722312544195,2.40841,3321.7,3321.4,36.68469415]
[1722312544390,0.1167796,3321.6,3321.4,36.68469415]
[1722312544693,2.40841,3321.7,3321.4,36.68469415]
[1722312545075,2.40847,3321.6,3321.4,36.68469415]
[1722312545277,0.1167796,3321.6,3321.4,36.68469415]
[1722312545479,2.40826,3321.9,3321.5,2.91230026]
[1722312545880,0.1167796,3321.8,3321.5,2.91230026]
[1722312546091,2.5251096,3321.8,3321.5,2.91230026]
[1722312547726,0.1167796,3321.8,3321.7,1.111]
[1722312548127,2.40813,3322.1,3321.5,2.97250831]
[1722312548418,2.40813,3322.1,3321.6,1.57674155]
[1722312548653,0.11700074,3322.0,3321.6,1.57674155]
[1722312550257,0.11700074,3322.0,3321.9,1.111]
[1722312550670,7.42,3322.3,3321.9,1.111]
[1722312550832,0.11714965,3322.0,3321.9,36.111]
[1722312551030,7.42,3322.3,3321.9,39.16001288]
[1722312551337,0.11714965,3322.2,3322.1,1.111]
[1722312551728,2.40783,3322.5,3322.1,1.111]
[1722312551909,0.11724888,3322.2,3322.1,1.111]
[1722312552114,2.40783,3322.5,3322.1,1.111]
[1722312552311,0.11724888,3322.2,3321.9,1.111]
[1722312552514,2.4079,3322.4,3322.1,35.0]
[1722312555031,2.4078,3322.6,3322.1,35.0]
[1722312555529,2.4078,3322.6,3322.2,0.06019524]
[1722312555731,2.4078,3322.6,3322.1,35.0]
[1722312556746,2.4078,3322.6,3322.1,36.111]
[1722312557340,2.40785,3322.5,3322.1,36.111]
[1722312557880,2.4078,3322.6,3322.1,36.111]
[1722312558466,0.11724888,3322.5,3322.1,36.111]
[1722312559174,2.40794,3322.4,3322.1,35.0]
[1722312559776,0.11724888,3322.3,3322.1,35.0]
[1722312561453,2.4078,3322.6,3322.1,35.0]
[1722312561651,0.11724888,3322.5,3322.1,35.0]
[1722312562008,2.40801,3322.3,3322.1,35.0]
[1722312562174,2.40804,3322.2,3322.1,35.0]
[1722312562379,2.52537462,3322.2,3322.1,35.0]
[1722312566415,4.93341462,3322.2,3322.1,35.0]
[1722312566788,2.52537462,3322.2,3322.1,35.0]
[1722312573835,4.93341462,3322.2,3322.1,35.0]
[1722312574150,6.5103869,3322.2,3322.1,35.0]
[1722312575100,4.93341462,3322.2,3322.1,35.0]
[1722312575551,6.5103869,3322.2,3322.1,35.0]
[1722312577001,6.51080874,3322.2,3322.1,35.0]
[1722312578207,11.40113549,3322.2,3322.1,35.0]
[1722312578409,11.95113549,3322.2,3322.1,35.0]
[1722312578726,2.40865,3321.4,3321.2,1.111]
[1722312579249,2.40865,3321.4,3321.3,35.0]
[1722312581465,4.8173,3321.4,3321.3,35.0]
[1722312582954,2.40865,3321.4,3321.3,35.0]
[1722312585461,2.40855,3321.5,3321.3,35.0]
[1722312587382,2.40862,3321.4,3321.3,35.0]
[1722312588468,2.52527776,3321.4,3321.3,35.0]
[1722312588673,4.93389776,3321.4,3321.3,35.0]
[1722312592362,8.03277717,3321.4,3321.3,35.0]
[1722312593080,6.45702528,3321.4,3321.3,35.0]
[1722312593412,4.93389776,3321.4,3321.3,35.0]
[1722312598202,0.11665776,3321.4,3321.3,35.0]
[1722312598761,2.4084,3321.7,3321.3,35.0]
[1722312598962,2.4084,3321.7,3321.4,1.111]
[1722312599955,2.40848,3321.6,3321.3,35.0]
[1722312600260,2.40857,3321.5,3321.3,35.0]
[1722312600737,2.40848,3321.6,3321.3,35.0]
[1722312602349,2.40834,3321.8,3321.3,35.0]
[1722312602513,2.40834,3321.8,3321.3,38.04901288]
[1722312603047,2.4084,3321.7,3321.3,38.04901288]
[1722312603431,0.11666677,3321.6,3321.3,38.04901288]
[1722312606966,0.11666677,3321.6,3321.4,1.1712094]
[1722312607130,0.11666677,3321.6,3321.5,3.04901288]
[1722312607370,2.4083,3321.9,3321.5,3.04901288]
[1722312607561,0.1167796,3321.6,3321.5,3.04901288]
[1722312607761,2.4083,3321.9,3321.5,3.04901288]
[1722312608163,0.1167796,3321.8,3321.5,3.04901288]
[1722312608785,0.1167796,3321.8,3321.6,0.42202223]
[1722312609344,2.5251096,3321.8,3321.5,3.04901288]
[1722312609698,2.4084,3321.7,3321.4,1.111]
[1722312609845,0.11681119,3321.6,3321.3,38.04901288]
[1722312610045,2.40862,3321.4,3321.3,35.0]
[1722312610297,2.52546279,3321.4,3321.3,35.0]
[1722312613158,4.93408279,3321.4,3321.3,35.0]
[1722312619535,6.51036996,3321.4,3321.3,35.0]
[1722312620335,4.93408279,3321.4,3321.3,35.0]
[1722312620723,2.52546279,3321.4,3321.3,35.0]
[1722312621092,2.52546279,3321.4,3321.0,1.111]
[1722312621295,0.11684279,3321.4,3321.0,1.75440082]
[1722312621527,0.11684279,3321.4,3321.3,35.0]
[1722312625249,1.57770954,3321.5,3321.3,35.0]
[1722312625444,0.11651782,3321.4,3321.3,35.0]
[1722312625829,1.577753,3321.6,3321.3,35.0]
[1722312625830,2.40855,3321.5,3321.3,35.0]
[1722312626039,0.11651782,3321.4,3321.3,35.0]
[1722312626263,1.577753,3321.5,3321.3,35.0]
[1722312626585,0.11651782,3321.4,3321.3,35.0]
[1722312626992,3.986233,3321.6,3321.3,35.0]
[1722312627179,0.1165765,3321.4,3321.3,35.0]
[1722312627360,1.577753,3321.6,3321.3,36.55060426]
[1722312627562,0.1165765,3321.4,3321.3,36.55060426]
[1722312627865,0.11662616,3321.4,3321.3,35.0]
[1722312628058,3.986163,3321.7,3321.3,35.0]
[1722312628262,0.11662616,3321.6,3321.3,35.0]
[1722312629398,1.69471606,3321.6,3321.3,35.0]
[1722312629602,0.11662616,3321.6,3321.3,35.0]
[1722312629982,4.10320606,3321.6,3321.3,35.0]
[1722312630279,1.5780899,3321.5,3321.3,35.0]
[1722312630601,0.1167074,3321.4,3321.3,35.0]
[1722312631365,1.5780899,3321.7,3321.3,35.0]
[1722312631570,0.1167074,3321.4,3321.3,35.0]
[1722312631771,1.5780899,3321.7,3321.3,38.04901288]